bitfinex-derivatives/quotes_BTCF0:USTF0_20241021
["timestamp","ask_amount","ask_price","bid_price","bid_amount"]
[1729488179089,0.072287,69186.0,69180.0,0.002]
[1729488179090,0.03541191,69184.0,69180.0,0.002]
[1729488179390,0.03541191,69183.0,69180.0,0.002]
[1729488179591,0.03541191,69182.0,69180.0,0.002]
[1729488179791,0.03541191,69181.0,69180.0,0.002]
[1729488180692,0.03541191,69181.0,69180.0,0.001]
[1729488180894,0.03541191,69181.0,69180.0,0.002]
[1729488181193,0.03541191,69181.0,69180.0,0.001]
[1729488181488,0.03541125,69181.0,69180.0,0.002]
[1729488181688,0.072286,69187.0,69180.0,0.001]
[1729488181896,0.03541102,69186.0,69180.0,0.002]
[1729488182096,0.03541102,69185.0,69180.0,0.002]
[1729488182291,0.03541102,69184.0,69180.0,0.002]
[1729488182497,0.03541102,69183.0,69180.0,0.002]
[1729488182692,0.03541102,69182.0,69180.0,0.002]
[1729488182991,0.07228,69192.0,69182.0,0.072291]
[1729488183197,0.0354106,69189.0,69185.0,0.3608]
[1729488183397,0.0354106,69188.0,69185.0,0.3608]
[1729488183691,0.0354106,69187.0,69185.0,0.3608]
[1729488183892,0.07228,69192.0,69185.0,0.3608]
[1729488183893,0.0354106,69186.0,69185.0,0.3608]
[1729488184295,0.0354106,69186.0,69185.0,0.3618]
[1729488184692,0.0354106,69186.0,69185.0,0.3628]
[1729488185194,0.0354106,69186.0,69185.0,0.3618]
[1729488185391,0.0354106,69186.0,69185.0,0.3628]
[1729488185899,0.07979258,69186.0,69185.0,0.3628]
[1729488186090,0.07979034,69186.0,69185.0,0.3628]
[1729488186795,0.07979034,69186.0,69185.0,0.435088]
[1729488187694,0.07979034,69186.0,69185.0,0.434088]
[1729488187996,0.15901306,69186.0,69185.0,0.435088]
[1729488188303,0.07979034,69186.0,69185.0,0.435088]
[1729488188602,0.23875131,69186.0,69185.0,0.435088]
[1729488189898,0.15207734,69186.0,69185.0,0.02067597]
[1729488190897,0.15208544,69186.0,69185.0,0.02067597]
[1729488191400,0.15208544,69186.0,69185.0,0.002]
[1729488192794,0.10769896,69186.0,69185.0,0.002]
[1729488193404,0.03541196,69186.0,69185.0,0.002]
[1729488194199,0.0653,69189.0,69185.0,0.002]
[1729488195395,0.072286,69187.0,69185.0,0.002]
[1729488195698,0.0315,69186.0,69185.0,0.002]
[1729488196998,0.0315,69186.0,69185.0,0.001]
[1729488197201,0.0315,69186.0,69185.0,0.002]
[1729488199896,0.11129778,69186.0,69185.0,0.002]
[1729488203607,0.18358478,69186.0,69185.0,0.002]
[1729488205994,0.11129778,69186.0,69185.0,0.002]
[1729488206997,0.11129778,69186.0,69170.0,0.10884]
[1729488206998,0.54489778,69186.0,69170.0,0.10884]
[1729488207211,0.15896813,69178.0,69175.0,0.8608]
[1729488207414,0.3608,69182.0,69175.0,0.8608]
[1729488207415,0.23876591,69177.0,69175.0,0.8608]
[1729488207607,0.10979778,69176.0,69175.0,0.8608]
[1729488208009,0.03,69176.0,69175.0,0.8608]
[1729488208199,0.03,69176.0,69175.0,0.5]
[1729488208996,0.03,69176.0,69175.0,0.501]
[1729488209206,0.03,69176.0,69175.0,0.502]
[1729488209408,0.03,69176.0,69175.0,0.501]
[1729488209606,0.03,69176.0,69175.0,0.502]
[1729488209807,0.03,69176.0,69175.0,0.52012608]
[1729488210111,0.031,69176.0,69175.0,0.52012608]
[1729488222821,0.50009764,69176.0,69157.0,0.072316]
[1729488223010,0.072313,69161.0,69157.0,0.3608]
[1729488223211,0.15896813,69159.0,69157.0,0.37959817]
[1729488223418,0.07981125,69158.0,69157.0,0.37959817]
[1729488223711,0.07981125,69158.0,69157.0,0.01879817]
[1729488223913,0.07981125,69158.0,69153.0,0.07232]
[1729488224111,0.0311,69160.0,69153.0,0.07232]
[1729488224112,0.1589777,69156.0,69155.0,0.36296875]
[1729488224312,0.07981125,69156.0,69155.0,0.36296875]
[1729488224509,0.07981125,69158.0,69155.0,0.36296875]
[1729488224714,0.07981125,69157.0,69155.0,0.36296875]
[1729488224906,0.07981125,69157.0,69155.0,0.38177062]
[1729488224907,0.07981125,69156.0,69155.0,0.38177062]
[1729488225415,0.07981125,69156.0,69155.0,0.36296875]
[1729488226019,0.07982576,69156.0,69155.0,0.36396875]
[1729488226506,0.07982576,69156.0,69155.0,0.36496875]
[1729488226703,0.07982576,69156.0,69155.0,0.36396875]
[1729488227715,0.07982576,69156.0,69155.0,0.00316875]
[1729488228112,0.1589777,69156.0,69155.0,0.00216875]
[1729488228513,0.23880668,69156.0,69155.0,0.00216875]
[1729488228822,0.07982898,69156.0,69155.0,0.00216875]
[1729488230013,0.072317,69157.0,69155.0,0.00216875]
[1729488231324,0.072317,69157.0,69146.0,0.01833392]
[1729488231526,0.073317,69157.0,69148.0,0.072326]
[1729488232711,0.074317,69157.0,69149.0,0.3608]
[1729488233722,0.002,69157.0,69149.0,0.3608]
[1729488233923,0.072318,69156.0,69149.0,0.3608]
[1729488238329,0.0311,69160.0,69155.0,0.072319]
[1729488238535,0.0311,69160.0,69156.0,0.0316]
[1729488239428,0.0331,69160.0,69156.0,0.0316]
[1729488240926,0.0341,69160.0,69156.0,0.0316]
[1729488241124,0.0321,69160.0,69156.0,0.0316]
[1729488241328,0.0341,69160.0,69156.0,0.0316]
[1729488245335,0.106414,69160.0,69156.0,0.0316]
[1729488248644,0.072315,69159.0,69156.0,0.0316]
[1729488248939,0.0341,69160.0,69156.0,0.0316]
[1729488249345,0.0341,69160.0,69158.0,0.072315]
[1729488249346,0.003,69160.0,69158.0,0.072315]
[1729488251143,0.001,69160.0,69158.0,0.072315]
[1729488251356,0.002,69159.0,69158.0,0.072315]
[1729488251548,0.001,69160.0,69158.0,0.181035]
[1729488252246,0.003,69160.0,69158.0,0.181035]
[1729488252858,0.001,69160.0,69158.0,0.181035]
[1729488253054,0.03541875,69159.0,69158.0,0.181035]
[1729488253549,0.03541875,69159.0,69158.0,0.614835]
[1729488253750,0.03541875,69159.0,69158.0,0.975635]
[1729488254456,0.00216916,69170.0,69158.0,0.90332]
[1729488254645,0.00076,69174.0,69169.0,0.3608]
[1729488254846,0.1585887,69181.0,69178.0,0.072295]
[1729488255047,0.1585887,69182.0,69178.0,0.072295]
[1729488255250,0.1585887,69182.0,69177.0,0.3608]
[1729488255251,0.1585887,69182.0,69179.0,0.072294]
[1729488255453,0.07229,69183.0,69179.0,0.072294]
[1729488256450,0.3608,69188.0,69178.0,0.001]
[1729488256650,0.072284,69189.0,69184.0,0.3608]
[1729488257252,0.1585887,69192.0,69184.0,0.3608]
[1729488257454,0.00216853,69193.0,69184.0,0.3908]
[1729488258057,0.001,69189.0,69184.0,0.3918]
[1729488258455,0.07228,69192.0,69184.0,0.3908]
[1729488258648,0.07228,69192.0,69184.0,0.3928]
[1729488259257,0.07228,69192.0,69184.0,0.3918]
[1729488259556,0.07228,69192.0,69184.0,0.3928]
[1729488259947,0.04438126,69191.0,69184.0,0.3928]
[1729488260152,0.07228,69192.0,69184.0,0.464088]
[1729488260466,0.07228,69192.0,69184.0,0.465088]
[1729488260467,0.001,69189.0,69184.0,0.465088]
[1729488260850,0.07328,69192.0,69184.0,0.465088]
[1729488261351,0.001,69192.0,69184.0,0.465088]
[1729488261556,0.001,69192.0,69185.0,0.072287]
[1729488262059,0.001,69192.0,69186.0,0.072287]
[1729488263762,0.00216853,69193.0,69186.0,0.072287]
[1729488263958,0.001,69192.0,69186.0,0.072287]
[1729488264262,0.001,69192.0,69186.0,0.073287]
[1729488264459,0.001,69192.0,69186.0,0.074287]
[1729488265551,0.001,69192.0,69186.0,0.073287]
[1729488265754,0.001,69192.0,69186.0,0.074287]
[1729488267764,0.001,69192.0,69191.0,0.072281]
[1729488268755,0.001,69192.0,69186.0,0.074286]
[1729488269068,0.001,69192.0,69188.0,0.072284]
[1729488270051,0.001,69192.0,69191.0,0.002]
[1729488270657,0.00216853,69193.0,69191.0,0.001]
[1729488270855,0.001,69192.0,69188.0,0.002]
[1729488271359,0.001,69192.0,69191.0,0.001]
[1729488271865,0.001,69192.0,69191.0,0.002]
[1729488272962,0.00216853,69193.0,69191.0,0.001]
[1729488273159,0.001,69192.0,69191.0,0.001]
[1729488274161,0.00216853,69193.0,69191.0,0.001]
[1729488274368,0.001,69192.0,69191.0,0.002]
[1729488274872,0.001,69192.0,69191.0,0.001]
[1729488275068,0.001,69192.0,69191.0,0.002]
[1729488275256,0.08078878,69192.0,69191.0,0.002]
[1729488276369,0.07978878,69192.0,69191.0,0.001]
[1729488276568,0.07978878,69192.0,69191.0,0.002]
[1729488277563,0.08078878,69192.0,69191.0,0.002]
[1729488280063,0.08078878,69192.0,69191.0,0.02047899]
[1729488280665,0.03640767,69192.0,69191.0,0.02047899]
[1729488283265,0.001,69192.0,69191.0,0.02047899]
[1729488286577,0.001,69192.0,69191.0,0.01947899]
[1729488286769,0.001,69192.0,69191.0,0.02047899]
[1729488290278,0.08078878,69192.0,69191.0,0.02047899]
[1729488290876,0.001,69192.0,69191.0,0.02047899]
[1729488291376,0.03640767,69192.0,69191.0,0.02047899]
[1729488291572,0.08078878,69192.0,69191.0,0.02047899]
[1729488295172,0.04538111,69192.0,69191.0,0.02047899]
[1729488295374,0.001,69192.0,69191.0,0.02047899]
[1729488299183,0.03640775,69192.0,69191.0,0.02047899]
[1729488304585,0.03640778,69192.0,69191.0,0.02047899]
[1729488308489,0.03640778,69192.0,69191.0,0.09275999]
[1729488309682,0.03640778,69192.0,69191.0,0.09175999]
[1729488309985,0.03540778,69192.0,69191.0,0.09275999]
[1729488310290,0.03640778,69192.0,69191.0,0.09275999]
[1729488312990,0.16014173,69192.0,69191.0,0.09275999]
[1729488313186,0.08078849,69192.0,69191.0,0.09275999]
[1729488313894,0.08078849,69192.0,69191.0,0.02047899]
[1729488315297,0.11258849,69192.0,69191.0,0.02047899]
[1729488319994,0.0328,69192.0,69191.0,0.02047899]
[1729488327802,0.0328,69192.0,69191.0,0.002]
[1729488327997,0.11258808,69192.0,69191.0,0.002]
[1729488329796,0.11258808,69192.0,69191.0,0.074281]
[1729488335104,0.0328,69192.0,69191.0,0.074281]
[1729488337802,0.06820734,69192.0,69191.0,0.074281]
[1729488338401,0.06820734,69192.0,69191.0,0.002]
[1729488343107,0.11258806,69192.0,69191.0,0.002]
[1729488348014,0.13076895,69192.0,69191.0,0.002]
[1729488348411,0.20304912,69192.0,69191.0,0.002]
[1729488350824,0.20305324,69192.0,69191.0,0.002]
[1729488354332,0.15867014,69192.0,69191.0,0.002]
[1729488355644,0.12326089,69192.0,69191.0,0.002]
[1729488355847,0.15867051,69192.0,69191.0,0.002]
[1729488360543,0.15867049,69192.0,69191.0,0.002]
[1729488361447,0.1404896,69192.0,69191.0,0.002]
[1729488362451,0.14048923,69192.0,69191.0,0.002]
[1729488364256,0.06820923,69192.0,69191.0,0.002]
[1729488365251,0.1644533,69192.0,69191.0,0.002]
[1729488373159,0.06820923,69192.0,69191.0,0.002]
[1729488373351,0.001,69192.0,69191.0,0.002]
[1729488373550,0.03640852,69192.0,69191.0,0.002]
[1729488373953,0.03640712,69192.0,69191.0,0.0326]
[1729488374152,0.001,69192.0,69191.0,0.0326]
[1729488375758,0.03640709,69192.0,69191.0,0.0326]
[1729488380060,0.08078748,69192.0,69191.0,0.0326]
[1729488384470,0.15306748,69192.0,69191.0,0.002]
[1729488384666,0.10868709,69192.0,69191.0,0.002]
[1729488388172,0.07328,69192.0,69191.0,0.002]
[1729488392772,0.10868867,69192.0,69191.0,0.002]
[1729488393776,0.03640867,69192.0,69191.0,0.002]
[1729488395169,0.03640867,69192.0,69191.0,0.074281]
[1729488395170,0.001,69192.0,69191.0,0.074281]
[1729488395574,0.03640867,69192.0,69191.0,0.074281]
[1729488397579,0.001,69192.0,69191.0,0.074281]
[1729488402484,0.001,69192.0,69191.0,0.002]
[1729488403177,0.04537946,69192.0,69191.0,0.002]
[1729488403377,0.08078581,69192.0,69191.0,0.002]
[1729488404397,0.08078583,69192.0,69191.0,0.002]
[1729488410086,0.001,69192.0,69191.0,0.002]
[1729488411978,0.03640616,69192.0,69191.0,0.002]
[1729488412179,0.08078538,69192.0,69191.0,0.002]
[1729488412686,0.03640616,69192.0,69191.0,0.002]
[1729488414481,0.03640615,69192.0,69191.0,0.002]
[1729488418082,0.08078536,69192.0,69191.0,0.002]
[1729488421278,0.03640615,69192.0,69191.0,0.002]
[1729488422580,0.09920615,69192.0,69191.0,0.002]
[1729488422778,0.13230615,69192.0,69191.0,0.002]
[1729488423100,0.13230817,69192.0,69191.0,0.002]
[1729488424187,0.17669003,69192.0,69191.0,0.002]
[1729488424390,0.19523245,69192.0,69191.0,0.002]
[1729488425205,0.11544242,69192.0,69191.0,0.002]
[1729488427595,0.0969,69192.0,69191.0,0.002]
[1729488430892,0.13230759,69192.0,69191.0,0.002]
[1729488433186,0.17668934,69192.0,69191.0,0.002]
[1729488433394,0.11388934,69192.0,69191.0,0.002]
[1729488440307,0.06950759,69192.0,69191.0,0.002]
[1729488444891,0.11388948,69192.0,69187.0,0.3608]
[1729488445094,0.14398948,69191.0,69187.0,0.3608]
[1729488445292,0.14398948,69191.0,69178.0,0.01854926]
[1729488445293,0.07229,69183.0,69178.0,0.01854926]
[1729488445502,0.15209037,69182.0,69174.0,0.1092082]
[1729488445693,0.1109996,69181.0,69174.0,0.1092082]
[1729488445899,0.03541237,69180.0,69174.0,0.1092082]
[1729488446503,0.03541237,69180.0,69174.0,0.0021682]
[1729488446804,0.03541237,69180.0,69174.0,0.0031682]
[1729488447404,0.03641237,69180.0,69174.0,0.0031682]
[1729488447608,0.03541237,69179.0,69174.0,0.0031682]
[1729488447815,0.03541237,69179.0,69174.0,0.002]
[1729488448198,0.074293,69180.0,69174.0,0.002]
[1729488448403,0.074293,69180.0,69174.0,0.02058812]
[1729488449313,0.003,69179.0,69174.0,0.01958812]
[1729488449513,0.004,69179.0,69174.0,0.02058812]
[1729488449810,0.001,69179.0,69174.0,0.02058812]
[1729488450113,0.075293,69180.0,69174.0,0.01958812]
[1729488450411,0.003,69179.0,69174.0,0.02058812]
[1729488452513,0.004,69179.0,69174.0,0.02058812]
[1729488453906,0.004,69179.0,69174.0,0.002]
[1729488454109,0.072297,69176.0,69174.0,0.002]
[1729488454416,0.03541482,69175.0,69174.0,0.002]
[1729488455212,0.07980719,69175.0,69174.0,0.002]
[1729488455717,0.07980719,69175.0,69174.0,0.001]
[1729488455913,0.07980719,69175.0,69174.0,0.002]
[1729488456213,0.07980719,69175.0,69163.0,0.10708]
[1729488456214,0.95524548,69175.0,69160.0,0.07448241]
[1729488456418,0.3608,69169.0,69160.0,0.07448241]
[1729488456713,0.3608,69169.0,69160.0,0.0933735]
[1729488456901,0.3608,69169.0,69160.0,0.0210595]
[1729488457105,0.436858,69175.0,69162.0,0.072311]
[1729488457300,0.436098,69175.0,69162.0,0.072311]
[1729488458012,0.002,69169.0,69162.0,0.072311]
[1729488459101,0.002,69169.0,69162.0,0.073311]
[1729488459420,0.072301,69172.0,69162.0,0.074311]
[1729488459617,0.0354206,69171.0,69162.0,0.074311]
[1729488459815,0.072301,69172.0,69162.0,0.074311]
[1729488459816,0.003,69169.0,69162.0,0.074311]
[1729488460615,0.007,69169.0,69162.0,0.074311]
[1729488461816,0.004,69169.0,69162.0,0.074311]
[1729488462008,0.03542077,69168.0,69162.0,0.074311]
[1729488462208,0.004,69169.0,69162.0,0.074311]
[1729488462209,0.03542077,69167.0,69162.0,0.002]
[1729488462515,0.03542077,69166.0,69164.0,0.072309]
[1729488462711,0.03542077,69165.0,69164.0,0.072309]
[1729488462919,0.006,69169.0,69165.0,0.3608]
[1729488463106,0.0354185,69168.0,69165.0,0.3608]
[1729488463306,0.003,69168.0,69165.0,0.3608]
[1729488463808,0.002,69169.0,69165.0,0.3608]
[1729488464512,0.003,69168.0,69165.0,0.3618]
[1729488464914,0.003,69168.0,69166.0,0.072307]
[1729488465721,0.002,69167.0,69166.0,0.072307]
[1729488466420,0.003,69169.0,69166.0,0.072307]
[1729488466607,0.002,69168.0,69166.0,0.073307]
[1729488466811,0.005,69168.0,69166.0,0.074307]
[1729488467214,0.002,69168.0,69166.0,0.001]
[1729488467516,0.005,69167.0,69166.0,0.002]
[1729488467922,0.002,69167.0,69166.0,0.002]
[1729488469011,0.005,69168.0,69166.0,0.002]
[1729488469524,0.003,69167.0,69166.0,0.002]
[1729488469925,0.005,69167.0,69166.0,0.002]
[1729488470126,0.002,69167.0,69166.0,0.002]
[1729488470629,0.002,69167.0,69166.0,0.3628]
[1729488470828,0.0374194,69167.0,69166.0,0.3628]
[1729488471126,0.0404194,69167.0,69166.0,0.002]
[1729488475127,0.084816,69167.0,69166.0,0.002]
[1729488475917,0.005,69167.0,69166.0,0.002]
[1729488476227,0.08481663,69167.0,69166.0,0.002]
[1729488477834,0.08481661,69167.0,69166.0,0.002]
[1729488478327,0.005,69167.0,69166.0,0.002]
[1729488483525,0.438106,69167.0,69166.0,0.002]
[1729488484025,0.47352953,69167.0,69166.0,0.002]
[1729488485234,0.4735298,69167.0,69166.0,0.002]
[1729488486333,0.47352981,69167.0,69166.0,0.002]
[1729488488240,0.005,69167.0,69166.0,0.002]
[1729488493332,0.08482019,69167.0,69166.0,0.002]
[1729488496338,0.08481846,69167.0,69166.0,0.002]
[1729488499843,0.08481846,69167.0,69166.0,0.0343]
[1729488500452,0.005,69167.0,69166.0,0.0343]
[1729488508346,0.08481382,69167.0,69166.0,0.0343]
[1729488508750,0.08481382,69167.0,69166.0,0.106607]
[1729488509554,0.00216896,69181.0,69177.0,0.072296]
[1729488509852,0.400575,69197.0,69184.0,0.072288]
[1729488509853,0.05186769,69190.0,69184.0,0.072288]
[1729488510049,0.0315,69193.0,69184.0,0.072288]
[1729488510050,0.07979297,69189.0,69184.0,0.072288]
[1729488510353,0.07979297,69188.0,69184.0,0.072288]
[1729488510555,0.07979297,69187.0,69184.0,0.072288]
[1729488510747,0.07979297,69186.0,69184.0,0.072288]
[1729488511052,0.07979297,69185.0,69184.0,0.073288]
[1729488513852,0.07979297,69185.0,69184.0,0.074288]
[1729488515445,0.0315,69193.0,69184.0,0.074288]
[1729488517645,0.0315,69193.0,69186.0,0.3608]
[1729488518750,0.0315,69193.0,69186.0,0.3628]
[1729488519652,0.0315,69193.0,69186.0,0.002]
[1729488519850,0.0315,69193.0,69186.0,0.3628]
[1729488523453,0.07978988,69192.0,69186.0,0.3628]
[1729488523654,0.15848782,69188.0,69186.0,0.3628]
[1729488523859,0.07978988,69187.0,69186.0,0.3628]
[1729488524563,0.2382777,69187.0,69186.0,0.3628]
[1729488525357,0.07978988,69187.0,69186.0,0.3628]
[1729488526256,0.07978944,69187.0,69186.0,0.3628]
[1729488526452,0.07978944,69187.0,69186.0,0.3618]
[1729488526658,0.07978944,69187.0,69186.0,0.3628]
[1729488526852,0.15848782,69187.0,69186.0,0.3628]
[1729488527056,0.19389578,69187.0,69186.0,0.3628]
[1729488527260,0.23827726,69187.0,69186.0,0.3628]
[1729488528655,0.23826556,69187.0,69186.0,0.3628]
[1729488529157,0.07978944,69187.0,69186.0,0.3628]
[1729488529856,0.23826556,69187.0,69186.0,0.3628]
[1729488530251,0.19388408,69187.0,69186.0,0.3628]
[1729488530567,0.0315,69193.0,69186.0,0.3628]
[1729488531459,0.0315,69193.0,69186.0,0.002]
[1729488531664,0.03540696,69192.0,69190.0,0.3608]
[1729488531964,0.0315,69193.0,69190.0,0.3608]
[1729488532166,0.03540696,69192.0,69190.0,0.3608]
[1729488532361,0.0315,69193.0,69190.0,0.3608]
[1729488532556,0.03540696,69192.0,69190.0,0.3608]
[1729488532753,0.03540696,69191.0,69190.0,0.3608]
[1729488533164,0.03540696,69191.0,69190.0,0.3618]
[1729488533569,0.03540696,69191.0,69190.0,0.3628]
[1729488534157,0.03540696,69191.0,69190.0,0.3618]
[1729488534363,0.03540696,69191.0,69190.0,0.3628]
[1729488536356,0.0315,69193.0,69190.0,0.3628]
[1729488536560,0.03540696,69192.0,69190.0,0.3628]
[1729488536760,0.03540696,69191.0,69190.0,0.3628]
[1729488537262,0.03540696,69191.0,69190.0,0.002]
[1729488537468,0.03540696,69191.0,69190.0,0.3618]
[1729488537667,0.03540696,69191.0,69190.0,0.3628]
[1729488538572,0.0315,69193.0,69190.0,0.3628]
[1729488538778,0.07978717,69192.0,69190.0,0.3628]
[1729488539073,0.07978717,69191.0,69190.0,0.3628]
[1729488540259,0.07978717,69191.0,69190.0,0.3618]
[1729488540772,0.07978716,69191.0,69190.0,0.3628]
[1729488541373,0.04438021,69191.0,69190.0,0.3628]
[1729488541673,0.07978716,69191.0,69190.0,0.3628]
[1729488541869,0.04438021,69191.0,69190.0,0.3628]
[1729488542071,0.07978716,69191.0,69190.0,0.3628]
[1729488542559,0.07978716,69192.0,69190.0,0.3628]
[1729488542765,0.07978716,69191.0,69190.0,0.3628]
[1729488542965,0.07978716,69192.0,69190.0,0.3628]
[1729488543161,0.07978716,69191.0,69190.0,0.3628]
[1729488543361,0.07978716,69192.0,69190.0,0.3628]
[1729488543569,0.07978716,69191.0,69190.0,0.3628]
[1729488543970,0.03540695,69191.0,69190.0,0.3628]
[1729488544171,0.07978716,69191.0,69190.0,0.3628]
[1729488544673,0.07978716,69191.0,69190.0,0.3618]
[1729488544882,0.07978716,69192.0,69190.0,0.3628]
[1729488545072,0.07978716,69191.0,69190.0,0.3628]
[1729488545267,0.07978716,69192.0,69190.0,0.3628]
[1729488545463,0.07978716,69191.0,69190.0,0.3628]
[1729488546771,0.07978716,69191.0,69190.0,0.3618]
[1729488546971,0.07978716,69191.0,69190.0,0.3628]
[1729488547168,0.03540695,69191.0,69190.0,0.3628]
[1729488547368,0.07978716,69191.0,69190.0,0.3628]
[1729488549074,0.07978716,69191.0,69190.0,0.002]
[1729488549281,0.15206816,69191.0,69190.0,0.002]
[1729488550078,0.15207573,69191.0,69190.0,0.002]
[1729488553484,0.10769131,69191.0,69190.0,0.002]
[1729488554882,0.03541031,69191.0,69190.0,0.002]
[1729488555083,0.03540955,69191.0,69190.0,0.002]
[1729488556684,0.07979301,69191.0,69190.0,0.002]
[1729488558984,0.03540955,69191.0,69190.0,0.002]
[1729488560190,0.079793,69191.0,69190.0,0.002]
[1729488568509,0.03540955,69191.0,69190.0,0.002]
[1729488570113,0.03540863,69191.0,69190.0,0.002]
[1729488575213,0.09800585,69197.0,69190.0,0.002]
[1729488575418,0.07979008,69196.0,69190.0,0.002]
[1729488575609,0.07979008,69195.0,69190.0,0.002]
[1729488575804,0.07979008,69194.0,69190.0,0.002]
[1729488576006,0.07979008,69193.0,69190.0,0.002]
[1729488576313,0.05185939,69197.0,69190.0,0.002]
[1729488576314,0.07979008,69192.0,69190.0,0.002]
[1729488576624,0.07979008,69191.0,69190.0,0.002]
[1729488577306,0.07979008,69191.0,69190.0,0.001]
[1729488577614,0.07979008,69191.0,69190.0,0.002]
[1729488578016,0.07979008,69191.0,69190.0,0.001]
[1729488578214,0.07979008,69191.0,69190.0,0.002]
[1729488580217,0.07978941,69191.0,69190.0,0.002]
[1729488583516,0.072276,69196.0,69190.0,0.002]
[1729488583818,0.03540795,69195.0,69190.0,0.002]
[1729488584015,0.03540795,69194.0,69190.0,0.002]
[1729488584204,0.03540795,69193.0,69190.0,0.002]
[1729488584410,0.072276,69196.0,69190.0,0.002]
[1729488584621,0.03540796,69195.0,69190.0,0.001]
[1729488584806,0.03540796,69194.0,69190.0,0.001]
[1729488585013,0.03540796,69193.0,69190.0,0.002]
[1729488585214,0.072276,69196.0,69190.0,0.002]
[1729488585412,0.03540796,69195.0,69190.0,0.001]
[1729488585614,0.03540796,69194.0,69190.0,0.001]
[1729488585811,0.03540796,69193.0,69190.0,0.002]
[1729488586008,0.072278,69195.0,69190.0,0.002]
[1729488586214,0.03540759,69194.0,69190.0,0.002]
[1729488586517,0.03540759,69193.0,69190.0,0.002]
[1729488586706,0.03540759,69192.0,69190.0,0.002]
[1729488586910,0.072278,69195.0,69190.0,0.002]
[1729488587204,0.03540778,69194.0,69190.0,0.002]
[1729488587417,0.03540778,69193.0,69190.0,0.002]
[1729488587619,0.072278,69195.0,69190.0,0.001]
[1729488587620,0.03540778,69192.0,69190.0,0.001]
[1729488587924,0.072278,69195.0,69190.0,0.002]
[1729488588223,0.03540785,69194.0,69190.0,0.002]
[1729488588520,0.03540785,69193.0,69190.0,0.002]
[1729488588821,0.03540785,69192.0,69190.0,0.002]
[1729488589014,0.072278,69195.0,69190.0,0.002]
[1729488589217,0.03540776,69194.0,69190.0,0.002]
[1729488589415,0.03540776,69193.0,69190.0,0.002]
[1729488589611,0.03540776,69192.0,69190.0,0.002]
[1729488589818,0.03540791,69191.0,69190.0,0.002]
[1729488590020,0.07978963,69191.0,69190.0,0.002]
[1729488590208,0.103578,69194.0,69190.0,0.002]
[1729488590209,0.07978963,69193.0,69190.0,0.002]
[1729488590615,0.07978963,69193.0,69190.0,0.001]
[1729488590819,0.07978963,69193.0,69190.0,0.002]
[1729488591212,0.07978963,69193.0,69190.0,0.001]
[1729488591415,0.07978963,69193.0,69190.0,0.002]
[1729488591615,0.11228963,69193.0,69190.0,0.002]
[1729488591813,0.07978963,69192.0,69190.0,0.002]
[1729488592011,0.07978963,69191.0,69190.0,0.002]
[1729488592212,0.07978963,69192.0,69190.0,0.002]
[1729488592423,0.07978963,69191.0,69190.0,0.002]
[1729488593116,0.03540791,69191.0,69190.0,0.002]
[1729488593612,0.07978963,69191.0,69190.0,0.002]
[1729488595217,0.07978963,69191.0,69190.0,0.001]
[1729488595412,0.0797895,69191.0,69190.0,0.002]
[1729488596321,0.07979027,69192.0,69190.0,0.002]
[1729488597022,0.04438194,69192.0,69190.0,0.002]
[1729488597512,0.0325,69193.0,69190.0,0.002]
[1729488597714,0.0325,69193.0,69190.0,0.001]
[1729488598015,0.0325,69193.0,69190.0,0.002]
[1729488598215,0.0354083,69191.0,69190.0,0.002]
[1729488598414,0.0443819,69191.0,69190.0,0.002]
[1729488600529,0.1166629,69191.0,69190.0,0.002]
[1729488603123,0.072281,69191.0,69190.0,0.002]
[1729488604422,0.09068197,69191.0,69190.0,0.002]
[1729488605320,0.17047267,69191.0,69190.0,0.002]
[1729488606018,0.09819167,69191.0,69190.0,0.002]
[1729488607129,0.03540852,69191.0,69190.0,0.002]
[1729488608731,0.01887103,69194.0,69190.0,0.002]
[1729488608924,0.072275,69198.0,69190.0,0.002]
[1729488609125,0.37928053,69197.0,69190.0,0.002]
[1729488610029,0.37928053,69197.0,69190.0,0.001]
[1729488610329,0.07978928,69196.0,69190.0,0.002]
[1729488610629,0.37928053,69197.0,69190.0,0.002]
[1729488610630,0.07978928,69195.0,69190.0,0.002]
[1729488610820,0.07978928,69194.0,69190.0,0.002]
[1729488611020,0.03540789,69193.0,69190.0,0.001]
[1729488611219,0.03540789,69192.0,69190.0,0.002]
[1729488611420,0.03540789,69191.0,69190.0,0.002]
[1729488612330,0.03540789,69191.0,69190.0,0.001]
[1729488612525,0.03540789,69191.0,69190.0,0.002]
[1729488613035,0.03540789,69191.0,69188.0,0.0326]
[1729488613329,0.07978929,69190.0,69188.0,0.0326]
[1729488613529,0.01867669,69197.0,69188.0,0.0326]
[1729488613530,0.07978929,69189.0,69188.0,0.0326]
[1729488613731,0.07053601,69197.0,69188.0,0.0326]
[1729488613732,0.15206529,69196.0,69188.0,0.0326]
[1729488613930,0.0797893,69195.0,69188.0,0.0326]
[1729488614128,0.0797893,69194.0,69188.0,0.0326]
[1729488614321,0.0797893,69193.0,69190.0,0.001]
[1729488614525,0.0797893,69192.0,69190.0,0.001]
[1729488614721,0.0797893,69191.0,69190.0,0.001]
[1729488614926,0.072276,69196.0,69188.0,0.0326]
[1729488614927,0.0797893,69195.0,69188.0,0.0326]
[1729488615224,0.0797893,69194.0,69188.0,0.0336]
[1729488615533,0.0797893,69193.0,69188.0,0.0346]
[1729488615833,0.0797893,69192.0,69188.0,0.0346]
[1729488616030,0.0797893,69191.0,69188.0,0.0346]